fUSD/lending_fUSD_20250422
["ID","MTS","AMOUNT","RATE_DAILY","PERIOD"]
[358618700,1745314237982,-3513.35695176,0.000198,2]
[358618702,1745314237992,-1300.0,0.000198,7]
[358618704,1745314238002,-300.0,0.000198,7]
[358618706,1745314238012,-9999.99,0.000198,2]
[358618708,1745314238021,-999.99,0.000198,2]
[358618710,1745314238031,-296.23,0.000198,2]
[358618712,1745314238041,-3563.82,0.000198,2]
[358618714,1745314238052,-150.99,0.000198,2]
[358618716,1745314238062,-38192.45,0.000198,2]
[358618718,1745314238071,-9999.99,0.000198,2]
[358618720,1745314238080,-9999.99,0.000198,2]
[358618722,1745314238091,-9999.99,0.000198,2]
[358618724,1745314238101,-234.0,0.00019808,2]
[358618726,1745314238110,-500.0,0.00019809,2]
[358618728,1745314238119,-333.04320394,0.00019809,2]
[358618730,1745314238130,-29189.62345086,0.0001981,2]
[358618732,1745314238139,-3040.5041,0.000199,2]
[358618734,1745314238149,-17301.9415,0.000199,2]
[358618736,1745314238159,-901.476,0.000199,2]
[358618738,1745314238168,-703.7365,0.000199,2]
[358618740,1745314238177,-1969.8128,0.000199,2]
[358618742,1745314238188,-382.4543,0.000199,2]
[358618744,1745314238199,-1300.0,0.000199,7]
[358618746,1745314238208,-193.53528402,0.000199,2]
[358618748,1745314238218,-300.0,0.000199,7]
[358618750,1745314238227,-14084.70445288,0.000199,2]
[358618752,1745314238237,-2599.7883142,0.000199,2]
[358618754,1745314238246,-10654.0,0.00019973,2]
[358618756,1745314238255,-500.0,0.00019973,2]
[358618758,1745314238265,-152.82356935,0.00019973,2]
[358618760,1745314238274,-500.0,0.00019973,2]
[358618762,1745314238283,-500.0,0.00019973,2]
[358618764,1745314238292,-263.8999404,0.00019973,2]
[358618766,1745314238302,-486.56356852,0.00019973,2]
[358618768,1745314238311,-511.0142955,0.00019973,2]
[358618770,1745314238321,-171.6758,0.00019973,2]
[358618772,1745314238331,-1000.0,0.00019999,2]
[358618774,1745314238340,-1022.5489785,0.00019999,2]
[358618776,1745314238349,-10048.65097814,0.00019999,2]
[358618778,1745314238358,-1010.6538,0.00019999,2]
[358618780,1745314238368,-1033220.8604313,0.0002,2]
[358618782,1745314238378,-185.64613362,0.0002,2]
[358618784,1745314238387,-556849.12607156,0.0002,2]
[358618787,1745314238400,-2979770.19535992,0.0002,2]
[358618790,1745314238418,-256.6463619,0.0002,2]
[358618792,1745314238430,-901.47596624,0.0002,2]
[358618795,1745314238445,-46482.09929822,0.0002,2]
[358618797,1745314238456,-1897.4812426,0.0002,2]
[358618799,1745314238467,-188704.21571644,0.0002,2]
[358618801,1745314238478,-18994.16840535,0.0002,2]
[358618803,1745314238490,-941.57868834,0.0002,2]
[358618806,1745314238501,-12511.70954479,0.0002,2]
[358618808,1745314238513,-4677.82886025,0.0002,2]
[358618941,1745314239908,-495.68719811,0.0002,2]
[358618944,1745314239920,-881.5755789,0.0002,2]
[358618955,1745314240019,-2614.10488298,0.0002,2]
[358618976,1745314240217,-2635.004524,0.0002,2]
[358618979,1745314240229,-779.30458002,0.0002,2]
[358618981,1745314240241,-917.65074819,0.0002,2]
[358618983,1745314240252,-9192.43820384,0.0002,2]
[358618985,1745314240263,-9956.70974464,0.0002,2]
[358618988,1745314240283,-921.54312845,0.0002,2]
[358618991,1745314240293,-5022760.15368436,0.0002,2]
[358618993,1745314240306,-500.0,0.0002,2]
[358619241,1745314242928,-34224.42359331,0.0002,2]
[358619243,1745314242940,-1883.58400306,0.0002,2]
[358619517,1745314245901,-462538.88175204,0.0002,2]
[358620529,1745314333808,10492.0,0.00029,60]
[358620530,1745314507597,-181.43224104,0.00019209,2]
[358620531,1745314653442,-806.73775896,0.00019209,2]
[358620532,1745314653475,-195.55829701,0.000198,2]
[358620533,1745314653508,-399.6292,0.000199,2]
[358620534,1745314653557,-7075.48308043,0.000199,2]
[358620535,1745314653606,-184.00331722,0.000199,2]
[358620536,1745314653652,-544.1969,0.000199,5]
[358620537,1745314653703,-544.1969,0.000199,5]
[358620538,1745314653752,-174.35201753,0.000199,2]
[358620539,1745314653800,-1733.19220948,0.00019943,2]
[358620540,1745314653849,-511.0142955,0.00019973,2]
[358620541,1745314653890,-152.82356935,0.00019973,2]
[358620542,1745314653934,-550.66700527,0.00019973,2]
[358620543,1745314653976,-500.0,0.00019973,2]
[358620544,1745314654020,-486.56356852,0.00019973,2]
[358620545,1745314654062,-241.74824093,0.00019973,2]
[358620546,1745314654102,-10654.0,0.00019973,2]
[358620547,1745314654142,-500.0,0.00019973,2]
[358620548,1745314654185,-9778.01723529,0.0001999,2]
[358620549,1745314654226,-1022.5489785,0.00019999,2]
[358620550,1745314654269,-263945.26742601,0.0002,2]
[358620558,1745315182953,150.0,0.00019111,2]
[358620566,1745315431791,-2017.61,0.00019734,2]
[358620567,1745315431802,-523.85460471,0.00019745,3]
[358620568,1745315431812,-189.57488143,0.00019745,2]
[358620569,1745315431822,-250.0,0.00019773,2]
[358620570,1745315431833,-250.0,0.00019787,7]
[358620571,1745315431842,-332.92871095,0.000198,2]
[358620572,1745315431945,-1529.76902895,0.000198,2]
[358620573,1745315431956,-300.0,0.00019899,2]
[358620574,1745315431966,-400.0,0.00019899,2]
[358620575,1745315431976,-174.3520175,0.000199,2]
[358620576,1745315431987,-1060.10162936,0.000199,2]
[358620577,1745315432001,-5307.83314309,0.000199,2]
[358620578,1745315432011,-189.57488142,0.000199,2]
[358620579,1745315432022,-267.42242549,0.00019945,2]
[358620580,1745315432034,-285.57757451,0.00019945,2]
[358620581,1745315432044,-150.0,0.00019973,2]
[358620582,1745315432055,-159.83463417,0.00019973,2]
[358620583,1745315432066,-263.8999404,0.00019973,2]
[358620584,1745315432076,-500.0,0.00019973,2]
[358620585,1745315432086,-150.99,0.00019973,2]
[358620586,1745315432095,-1822.38497572,0.0001999,2]
[358620588,1745315432108,-5316.00502428,0.0001999,2]
[358620590,1745315432118,-1000.0,0.00019999,2]
[358620592,1745315432127,-1103.97023572,0.00019999,2]
[358620594,1745315432139,-1244.15535,0.00019999,2]
[358620649,1745315437846,-691.91441428,0.00019999,2]
[358620650,1745315437860,-1618985.33746681,0.0002,2]
[358620651,1745315437876,-1218124.67375336,0.0002,2]
[358620652,1745315437891,-20164.81324046,0.0002,2]
[358620653,1745315437904,-10000.0,0.0002,2]
[358620654,1745315437919,-4298.67101222,0.0002,2]
[358620655,1745315437933,-8767.13203376,0.0002,2]
[358620656,1745315437947,-1159129.7372026,0.0002,2]
[358620657,1745315437962,-13354.15107839,0.0002,2]
[358620658,1745315437977,-1000.0,0.00020043,2]
[358620659,1745315437994,-499.99,0.00020043,2]
[358620660,1745315438008,-500.0,0.00020274,2]
[358620661,1745315438022,-614.34523402,0.00020274,2]
[358620662,1745315438037,-6367.93477238,0.00020444,2]
[358620663,1745315438052,-500.0,0.00020493,2]
[358620664,1745315438066,-250.0,0.0002052,2]
[358620665,1745315438081,-200.43,0.00020678,2]
[358620666,1745315438095,-168.91,0.000207,2]
[358620667,1745315438109,-250.0,0.00020775,2]
[358620668,1745315438123,-169.65,0.00020811,2]
[358620669,1745315438138,-158.93,0.00020867,2]
[358620670,1745315438152,-1389.43,0.00020941,2]
[358620671,1745315438166,-6367.93477238,0.00020989,2]
[358620672,1745315438180,-4999.999997,0.00021,2]
[358620673,1745315438195,-250.0,0.00021,2]
[358620674,1745315438208,-206.69,0.00021034,2]
[358620675,1745315438219,-1144.35,0.00021042,2]
[358620676,1745315438228,-425.45,0.00021067,2]
[358620677,1745315438239,-200.0,0.00021103,2]
[358620678,1745315438250,-200.0,0.00021106,2]
[358620679,1745315438260,-6120.56,0.0002113,2]
[358620680,1745315438269,-150.0,0.00021132,2]
[358620681,1745315438279,-200.0,0.00021163,2]
[358620682,1745315438290,-193.02,0.00021186,2]
[358620704,1745315438564,-4440.58,0.00021197,2]
[358620705,1745315438593,-23900.0,0.00021241,2]
[358620706,1745315438615,-21524.39,0.00021294,2]
[358620707,1745315438625,-3992.57,0.00021321,2]
[358620708,1745315438635,-25961.94,0.00021323,2]
[358620709,1745315438644,-196.56,0.00021367,2]
[358620710,1745315438653,-10177.34,0.00021429,2]
[358620711,1745315438663,-988.17,0.00021472,2]
[358620712,1745315438672,-288.11,0.00021486,2]
[358620713,1745315438682,-1761.14,0.00021487,2]
[358620714,1745315438691,-171.6758,0.00021507,2]
[358620716,1745315438701,-6367.93477238,0.00021533,2]
[358620718,1745315438711,-420.0,0.0002167,2]
[358620720,1745315438721,-250.0,0.0002172,2]
[358620723,1745315438730,-167.2,0.00021755,2]
[358620726,1745315438739,-150.0,0.0002178,2]
[358620729,1745315438749,-250.0,0.00021829,2]
[358620732,1745315438758,-6367.93477238,0.00022078,2]
[358620735,1745315438767,-174.3520175,0.000224,2]
[358620737,1745315438776,-2900.0,0.000225,15]
[358620739,1745315438785,-169.65,0.00022545,2]
[358620741,1745315438794,-1000.0,0.00022548,2]
[358620743,1745315438804,-6367.93477238,0.00022622,2]
[358620745,1745315438813,-167.2,0.00022952,2]
[358620747,1745315438823,-300.0,0.00023,2]
[358620749,1745315438834,-6367.93477238,0.00023167,2]
[358620751,1745315438843,-587.0,0.00023599,2]
[358620753,1745315438854,-6367.93477238,0.00023711,2]
[358620755,1745315438864,-988.17,0.00023736,2]
[358620757,1745315438873,-191.98,0.00023836,2]
[358620759,1745315438883,-3627.72583238,0.00023858,2]
[358620761,1745315438892,-999.18,0.00024,15]
[358620763,1745315438901,-167.2,0.00024148,2]
[358620765,1745315438911,-3564.99864899,0.0002421,2]
[358620767,1745315438920,-6367.93477238,0.00024256,2]
[358620769,1745315438930,-169.65,0.00024279,2]
[358620771,1745315438939,-500.0,0.00024773,2]
[358620773,1745315438948,-500.0,0.00024773,2]
[358620775,1745315438958,-500.56534323,0.00024773,2]
[358620777,1745315438967,-500.0,0.00024773,2]
[358620779,1745315438977,-500.0,0.00024773,2]
[358620781,1745315438987,-511.03107683,0.00024773,2]
[358620783,1745315438999,-545.33455771,0.00024773,2]
[358620785,1745315439009,-500.50253674,0.00024773,2]
[358620786,1745315439018,-6367.93477238,0.000248,2]
[358620789,1745315439028,-355123.63304331,0.000248,3]
[358620791,1745315439042,-22926.58523897,0.000248,3]
[358620896,1745315440040,-423.01516839,0.000248,3]
[358621487,1745315446145,-97622.38845767,0.000248,3]
[358621489,1745315446158,-104682.27667466,0.000248,3]
[358621491,1745315446168,-500.0,0.00024873,2]
[358621493,1745315446178,-174.3520175,0.000249,2]
[358621495,1745315446187,-350.0,0.00025,2]
[358621497,1745315446198,-1000.0,0.00025053,2]
[358621499,1745315446208,-167.2,0.00025345,2]
[358621502,1745315446218,-500.0,0.00025452,2]
[358621503,1745315446228,-823.0,0.00025699,2]
[358621505,1745315446237,-988.17,0.00026,2]
[358621507,1745315446247,-169.65,0.00026013,2]
[358621509,1745315446257,-762.39392613,0.000264,2]
[358621512,1745315446267,-4148.0,0.00026479,2]
[358621514,1745315446277,-247.973,0.00026479,2]
[358621516,1745315446286,-400.0,0.00027,2]
[358621518,1745315446296,-1000.0,0.00027559,2]
[358621520,1745315446305,-107.91273449,0.00027748,2]
[358621530,1745315446395,-39.51537021,0.00027748,2]
[358621532,1745315446407,-22.2218953,0.00027748,2]
[358621534,1745315446417,-383.0,0.00027986,2]
[358621536,1745315446427,-988.17,0.00028264,2]
[358621538,1745315446437,-7160.8329887,0.00028425,2]
[358621541,1745315446449,-1645.64552434,0.00028425,2]
[358622992,1745316115087,429.71,0.00018,7]
[358623009,1745316631996,-169.737325,0.000198,2]
[358623010,1745316632006,-566.0,0.00019899,2]
[358623011,1745316632015,-774.3907,0.000199,2]
[358623012,1745316632024,-1769.9669,0.000199,2]
[358623013,1745316632033,-183.59146583,0.0002179,2]
[358623014,1745316632042,-250.0,0.0002189,2]
[358623015,1745316632052,-250.0,0.00022336,2]
[358623016,1745316632061,-1575.80220816,0.00023683,2]
[358623017,1745316632072,-1929.88700768,0.00023683,2]
[358623018,1745316632084,-1473.74424324,0.00023683,2]
[358623019,1745316632095,-663.23,0.00023683,2]
[358623020,1745316632107,-6601.33654092,0.00023683,2]
[358623021,1745316632116,-300.0,0.00024693,2]
[358623022,1745316632125,-10218.83446947,0.00024694,2]
[358623023,1745316632134,-250.0,0.00026019,2]
[358623024,1745316632143,-416.63455237,0.00026162,2]
[358623025,1745316632152,-420.0,0.00026759,2]
[358623026,1745316632161,-359.0,0.00028998,2]
[358623027,1745316632171,-450.0,0.00029,2]
[358623028,1745316632181,-169.65,0.00029482,2]
[358623029,1745316632190,-500.0,0.00031,2]
[358623030,1745316632199,-169.65,0.00031216,2]
[358623031,1745316632209,-435.00273493,0.00031216,2]
[358623033,1745316632218,-163.8,0.00032877,30]
[358623034,1745316632227,-550.0,0.00033,2]
[358623035,1745316632237,-92.16670231,0.00034548,10]
[358623036,1745316632249,-57.83329769,0.00034548,10]
[358623037,1745316632258,-205.76970231,0.00035,2]
[358623039,1745316632270,-394.23029769,0.00035,2]
[358623040,1745316632280,-25.37927869,0.0003593,7]
[358623041,1745316632292,-432.52499992,0.0003593,7]
[358623042,1745316632311,-424.72483251,0.0003593,7]
[358623043,1745316632321,-769.59,0.00039572,2]
[358623044,1745316632331,-355.68516749,0.0004,5]
[358623050,1745316638052,-367.69545106,0.0004,5]
[358623051,1745316638062,-71.93301329,0.0004,2]
[358623052,1745316638075,-281.78651295,0.0004,2]
[358623053,1745316638087,-237.21840608,0.0004,2]
[358623054,1745316638105,-126.38773187,0.0004,15]
[358623055,1745316638130,-317.82899649,0.0004,15]
[358623056,1745316638149,-250.0,0.00040634,7]
[358623057,1745316638169,-309.48,0.00040722,2]
[358623058,1745316638189,-250.0,0.00040867,2]
[358623059,1745316638206,-169.0,0.00041,14]
[358623060,1745316638223,-200.0,0.00041029,2]
[358623061,1745316638243,-150.0,0.00041095,120]
[358623062,1745316638262,-170.82063959,0.00041096,2]
[358623063,1745316638281,-1000.0,0.00041169,2]
[358623064,1745316638300,-988.05,0.00041236,2]
[358623065,1745316638319,-200.0,0.00041263,2]
[358623066,1745316638338,-150.0,0.0004128,2]
[358623067,1745316638357,-200.0,0.00041388,2]
[358623068,1745316638372,-23900.0,0.00041405,2]
[358623071,1745316638386,-158.76,0.00041529,30]
[358623074,1745316638409,-41.17372849,0.00041569,2]
[358623076,1745316638426,-118.80627151,0.00041569,2]
[358623079,1745316638444,-769.59,0.00041835,2]
[358623082,1745316638460,-515.82641162,0.00042,120]
[358623084,1745316638473,-582.0,0.000421,3]
[358623087,1745316638494,-252.72251562,0.00042113,30]
[358623089,1745316638510,-93.36987474,0.00042113,30]
[358623111,1745316638637,-140.30159894,0.00042113,30]
[358623114,1745316638652,-243.05997939,0.00042113,30]
[358623116,1745316638668,-295.753561,0.00042113,30]
[358623119,1745316638684,-150.0,0.00042465,120]
[358623121,1745316638699,-150.0,0.00042932,30]
[358623124,1745316638715,-150.0,0.00042932,30]
[358623127,1745316638730,-160.6,0.00042932,30]
[358623129,1745316638746,-150.0,0.00042932,30]
[358623132,1745316638761,-150.0,0.00042932,30]
[358623134,1745316638777,-30.53147444,0.00042932,30]
[358623137,1745316638797,-119.46852556,0.00042932,30]
[358623139,1745316638813,-150.0,0.00042932,30]
[358623142,1745316638828,-150.0,0.00042932,30]
[358623144,1745316638844,-31.68652205,0.00042932,30]
[358623147,1745316638863,-118.31347795,0.00042932,30]
[358623150,1745316638878,-150.0,0.00042932,30]
[358623152,1745316638894,-150.0,0.00042932,30]
[358623155,1745316638910,-150.0,0.00042932,30]
[358623157,1745316638925,-150.0,0.00042932,30]
[358623160,1745316638940,-194.446,0.00042932,30]
[358623162,1745316638956,-99.10873857,0.00043151,90]
[358623166,1745316638975,-69.89126143,0.00043151,90]
[358623168,1745316638991,-394.65261759,0.00043562,120]
[358623171,1745316639007,-336.42484724,0.00043698,2]
[358623173,1745316639022,-150.0,0.00043835,120]
[358623176,1745316639037,-769.59,0.00044099,2]
[358623178,1745316639053,-151.0,0.00045,120]
[358623181,1745316639068,-151.0,0.00045,120]
[358623184,1745316639084,-311.49,0.00045,30]
[358623186,1745316639100,-150.0,0.00045205,120]
[358623189,1745316639115,-939.7256596,0.00045416,4]
[358623191,1745316639131,-611.48578701,0.000457,30]
[358623194,1745316639146,-4159.56512069,0.00046,2]
[358623201,1745316639209,-795.83,0.00046,2]
[358623207,1745316639255,-23817.42187573,0.00046,2]
[358623210,1745316639271,-150.0,0.00046,2]
[358623212,1745316639287,-724.15444736,0.0004622,20]
[358623215,1745316639304,-1000.0,0.00046315,2]
[358623217,1745316639320,-200.0,0.00046342,2]
[358623219,1745316639332,-769.59,0.00046363,2]
[358623221,1745316639342,-1010.6538,0.00046499,2]
[358623223,1745316639352,-150.0,0.00046575,120]
[358623225,1745316639361,-471.74,0.000468,2]
[358623227,1745316639371,-1234.56441935,0.00047,14]
[358623229,1745316639381,-3500.0,0.00047,2]
[358623231,1745316639391,-184.98777769,0.00047,120]
[358623233,1745316639402,-2293.96,0.00047,10]
[358623261,1745316639669,-250.0,0.00047,45]
[358623266,1745316639701,-250.0,0.0004715,45]
[358623268,1745316639721,-250.0,0.0004725,45]
[358623270,1745316639730,-3117.461,0.000473,2]
[358623272,1745316639740,-717.5299,0.00047344,2]
[358623274,1745316639749,-2240.1823,0.00047344,2]
[358623276,1745316639758,-250.0,0.0004735,45]
[358623278,1745316639768,-151.77038058,0.0004738,15]
[358623280,1745316639777,-1461.33766627,0.0004739,19]
[358623282,1745316639786,-8552.2395,0.0004739,2]
[358623284,1745316639796,-27942.81229731,0.000474,2]
[358623286,1745316639805,-6873.8715,0.000474,2]
[358623288,1745316639814,-4760.0641,0.000474,120]
[358623290,1745316639823,-8639.92047843,0.00047444,2]
[358623292,1745316639834,-162.66,0.0004747,2]
[358623294,1745316639843,-162.66,0.0004747,2]
[358623296,1745316639852,-162.66,0.0004747,2]
[358623298,1745316639861,-162.66,0.0004747,2]
[358623300,1745316639870,-519.65148444,0.00047479,120]
[358623302,1745316639880,-519.65148444,0.00047479,120]
[358623304,1745316639889,-519.65148444,0.00047479,120]
[358623306,1745316639898,-519.65148444,0.00047479,120]
[358623308,1745316639908,-519.65148444,0.00047479,120]
[358623310,1745316639917,-519.65148444,0.00047479,120]
[358623312,1745316639927,-519.65148444,0.00047479,120]
[358623314,1745316639938,-519.65148444,0.00047479,120]
[358623316,1745316639947,-519.65148444,0.00047479,120]
[358623318,1745316639956,-519.65148444,0.00047479,120]
[358623320,1745316639966,-519.65148444,0.00047479,120]
[358623322,1745316639975,-519.65148444,0.00047479,120]
[358623324,1745316639984,-519.65148444,0.00047479,120]
[358623326,1745316639993,-519.65148444,0.00047479,120]
[358623327,1745316640003,-545.63405866,0.00047479,120]
[358623329,1745316640012,-545.63405866,0.00047479,120]
[358623331,1745316640021,-545.63405866,0.00047479,120]
[358623333,1745316640030,-545.63405866,0.00047479,120]
[358623335,1745316640040,-545.63405866,0.00047479,120]
[358623337,1745316640049,-545.63405866,0.00047479,120]
[358623339,1745316640058,-545.63405866,0.00047479,120]
[358623341,1745316640068,-545.63405866,0.00047479,120]
[358623343,1745316640077,-545.63405866,0.00047479,120]
[358623345,1745316640087,-545.63405866,0.00047479,120]
[358623347,1745316640096,-158.71,0.00047479,15]
[358623349,1745316640105,-185074.758621,0.0004748,4]
[358623351,1745316640115,-53857.8857277,0.0004748,4]
[358623353,1745316640124,-152.11,0.0004748,2]
[358623355,1745316640133,-143150.36616601,0.0004749,4]
[358623357,1745316640146,-10223.40317203,0.0004749,4]
[358623388,1745316640477,-1469.52906931,0.0004749,4]
[358623391,1745316640490,-1027.8865036,0.0004749,4]
[358623398,1745316640555,-40481.1569637,0.0004749,4]
[358623401,1745316640579,-2240.1773407,0.0004749,4]
[358623403,1745316640591,-9096.64373114,0.0004749,4]
[358623406,1745316640603,-8947.21879473,0.0004749,4]
[358623408,1745316640615,-8943.78386462,0.0004749,4]
[358623410,1745316640627,-5763.28267116,0.0004749,4]
[358623412,1745316640637,-3314.26599036,0.0004749,4]
[358623414,1745316640649,-8943.84023489,0.0004749,4]
[358623624,1745316643016,-151.0,0.0003381,2]
[358623626,1745316643027,-151.0,0.0003381,2]
[358623628,1745316643037,-507.92266961,0.0004749,4]
[358623630,1745316643048,-518.54310043,0.0004749,4]
[358623632,1745316643060,-2451.938759,0.0004749,4]
[358623695,1745316643827,-16846.97413823,0.0004749,4]
[358623697,1745316643840,-8193.30334417,0.0004749,4]
[358623698,1745316643853,-188119.22610631,0.0004749,4]
[358623700,1745316643862,-8473.29985136,0.000475,7]
[358623878,1745316646057,-380435.19920516,0.000475,7]
[358623889,1745316646161,-7112.7420137,0.000475,7]
[358623891,1745316646173,-2683.66363564,0.000475,7]
[358623906,1745316646319,-898.41937132,0.000475,7]
[358623909,1745316646331,-46427.73931799,0.000475,7]
[358624470,1745317163890,-150.0,0.00042113,30]
[358624471,1745317167135,-52.6612604,0.00042113,30]
[358624472,1745317167178,-97.3387396,0.00042113,30]
[358624473,1745317174525,-97.57401542,0.00042113,30]
[358624474,1745317174569,-52.42598458,0.00042113,30]
[358624475,1745317176647,-150.0,0.00042113,30]
[358624476,1745317178670,-34.74239471,0.00042113,30]
[358624477,1745317178715,-115.25760529,0.00043888,30]
[358624478,1745317191562,-200.0,0.00043888,30]
[358624479,1745317194209,-200.0,0.00043888,30]
[358624481,1745317220216,-200.0,0.00043888,30]
[358624482,1745317222849,-200.0,0.00043888,30]
[358624483,1745317225208,-200.0,0.00043888,30]
[358624484,1745317230549,-200.0,0.00043888,30]
[358624485,1745317238466,-200.0,0.00043888,30]
[358624486,1745317240935,-200.0,0.00043888,30]
[358624487,1745317340868,-162.51653069,0.00042113,30]
[358624488,1745317340906,-37.48346931,0.00042113,30]
[358624489,1745317342898,-118.81944064,0.00042113,30]
[358624490,1745317342940,-81.18055936,0.00042113,30]
[358624491,1745317346438,-109.00764985,0.00042113,30]
[358624492,1745317346480,-90.99235015,0.00043888,30]
[358624493,1745317348526,-200.0,0.00043888,30]
[358624494,1745317642362,1690.16,0.000265,30]
[358624495,1745317720184,200.0,0.000192,7]
[358624504,1745317722279,500.0,0.000193,7]
[358624506,1745317724372,800.0,0.000194,7]
[358624507,1745317726481,1100.0,0.000195,7]
[358624519,1745317832206,-1400.0,0.000196,7]
[358624520,1745317832216,-200.0,0.000197,7]
[358624521,1745317832227,-200.0,0.000198,7]
[358624522,1745317832237,-1200.0,0.00019899,2]
[358624523,1745317832248,-300.0,0.00019899,2]
[358624524,1745317832258,-717.5299,0.000199,2]
[358624525,1745317832268,-2144.94412601,0.000199,2]
[358624526,1745317832280,-415.32026094,0.000199,2]
[358624527,1745317832343,-1621.85,0.000199,2]
[358624528,1745317832356,-502.20959762,0.000199,2]
[358624529,1745317832368,-1716.80885001,0.000199,2]
[358624531,1745317832438,-787.72537109,0.000199,2]
[358624533,1745317832450,-593.35042861,0.000199,2]
[358624536,1745317832475,-1280.86813107,0.000199,2]
[358624538,1745317832487,-7584.80622634,0.000199,2]
[358624540,1745317832499,-320.24687786,0.000199,2]
[358624543,1745317832515,-45794.38711747,0.000199,2]
[358624545,1745317832527,-518.32839176,0.000199,2]
[358624587,1745317838203,-479.19708204,0.000199,2]
[358624589,1745317838214,-110.88588594,0.000199,2]
[358624591,1745317838460,-63.46613156,0.000199,2]
[358624592,1745317838470,-200.0,0.000199,7]
[358624593,1745317838481,-245.45365675,0.000199,2]
[358624594,1745317838492,-9255.976,0.000199,2]
[358624595,1745317838502,-382.4543,0.000199,2]
[358624596,1745317838512,-407.4390935,0.000199,2]
[358624597,1745317838522,-2210.47507328,0.000199,2]
[358624598,1745317838532,-3805.82179571,0.000199,2]
[358624599,1745317838542,-162.66,0.0001999,2]
[358624600,1745317838552,-162.66,0.0001999,2]
[358624601,1745317838562,-162.66,0.0001999,2]
[358624602,1745317838572,-162.66,0.0001999,2]
[358624603,1745317838581,-182.84227119,0.0001999,2]
[358624604,1745317838591,-182.84227119,0.0001999,2]
[358624605,1745317838601,-182.84227119,0.0001999,2]
[358624606,1745317838610,-500.0,0.00019999,2]
[358624607,1745317838620,-500.0,0.00019999,2]
[358624608,1745317838630,-2137825.35727981,0.0002,2]
[358624609,1745317838643,-2979770.19535992,0.0002,2]
[358624610,1745317838664,-611.70497818,0.0002,2]
[358624611,1745317838676,-1548.13312365,0.0002,2]
[358624612,1745317838696,-20000.0,0.0002,2]
[358624613,1745317838708,-1458.59899652,0.0002,2]
[358624614,1745317838720,-2547.105,0.0002,2]
[358624615,1745317838732,-824.93485951,0.0002,2]
[358624634,1745317838991,-953.82884201,0.0002,2]
[358624635,1745317839008,-529.11166105,0.0002,2]
[358624636,1745317839020,-323.74980101,0.0002,2]
[358624637,1745317839049,-626.36968683,0.0002,2]
[358624638,1745317839061,-2813.57906416,0.0002,2]
[358624764,1745317840378,-2240.1773407,0.0002,2]
[358624767,1745317840390,-9096.64373114,0.0002,2]
[358624769,1745317840401,-8947.21879473,0.0002,2]
[358624771,1745317840412,-8943.78386462,0.0002,2]
[358624773,1745317840423,-9077.54866152,0.0002,2]
[358624775,1745317840435,-8943.84023489,0.0002,2]
[358624783,1745317840505,-867.89771197,0.0002,2]
[358624789,1745317840547,-865.17017121,0.0002,2]
[358624791,1745317840558,-1028.93609989,0.0002,2]
[358624793,1745317840570,-682.60523184,0.0002,2]
[358624795,1745317840582,-1034.355,0.0002,2]
[358624797,1745317840593,-490.0,0.0002,2]
[358624800,1745317840605,-6492.98264759,0.0002,2]
[358624802,1745317840617,-807.96514962,0.0002,2]
[358624804,1745317840636,-3765.65067063,0.0002,2]
[358624806,1745317840649,-13271.54999999,0.0002,2]
[358624817,1745317840755,-9854.64352264,0.0002,2]
[358624820,1745317840775,-6223.95118919,0.0002,2]
[358624822,1745317840787,-500.0,0.0002,2]
[358624824,1745317840802,-577.46205938,0.0002,2]
[358624826,1745317840813,-613.96756021,0.0002,2]